bitfinex-derivatives/quotes_BTCF0:USTF0_20251217
["timestamp","ask_amount","ask_price","bid_price","bid_amount"]
[1765996801792,0.72172668,86401.0,86377.0,0.0115808]
[1765996801995,0.228372,86400.0,86376.0,0.0115808]
[1765996802293,0.00017359,86398.0,86390.0,0.589172]
[1765996802602,3.59e-06,86398.0,86395.0,0.0115783]
[1765996802791,2.7e-07,86401.0,86397.0,0.372378]
[1765996803092,0.00100027,86401.0,86390.0,0.589172]
[1765996803299,0.228372,86410.0,86397.0,0.3608]
[1765996803795,0.228372,86410.0,86390.0,0.3608]
[1765996803796,0.001,86398.0,86390.0,0.3608]
[1765996804096,0.3608,86391.0,86376.0,0.3608]
[1765996804288,0.3608,86391.0,86380.0,0.228372]
[1765996804483,0.00013291,86397.0,86383.0,0.3608]
[1765996804688,0.00013291,86397.0,86387.0,0.228372]
[1765996804888,0.00013291,86397.0,86383.0,0.3608]
[1765996805102,0.00013291,86397.0,86378.0,0.04309621]
[1765996805103,0.3608,86388.0,86378.0,0.03151561]
[1765996805484,0.3608,86388.0,86378.0,0.25988761]
[1765996806192,0.3608,86388.0,86378.0,0.03151561]
[1765996806391,0.3608,86388.0,86378.0,0.25988761]
[1765996806894,0.00013291,86397.0,86386.0,0.3608]
[1765996807199,0.3608,86409.0,86393.0,0.3608]
[1765996807388,0.01,86422.0,86408.0,0.0115766]
[1765996807589,0.3608,86435.0,86415.0,0.3608]
[1765996807789,0.3608,86435.0,86424.0,0.3608]
[1765996808493,0.3608,86435.0,86425.0,0.0115744]
[1765996808802,0.00017359,86438.0,86424.0,0.3608]
[1765996809298,0.00017359,86438.0,86400.0,0.01]
[1765996809299,0.3608,86425.0,86406.0,0.3608]
[1765996809600,0.3608,86425.0,86411.0,0.0115761]
[1765996810210,0.3608,86425.0,86406.0,0.3608]
[1765996810211,0.3608,86425.0,86414.0,0.3608]
[1765996810698,0.3618,86425.0,86414.0,0.3608]
[1765996810898,0.3608,86417.0,86407.0,0.0115767]
[1765996811405,0.00017359,86421.0,86411.0,0.0115761]
[1765996811590,0.00017359,86421.0,86407.0,0.0115767]
[1765996811984,0.00017359,86421.0,86409.0,0.0115764]
[1765996812807,9e-08,86421.0,86416.0,0.0115755]
[1765996813100,9e-08,86421.0,86414.0,0.3608]
[1765996813300,0.001,86417.0,86414.0,0.3608]
[1765996813488,9e-08,86421.0,86415.0,0.0115757]
[1765996813688,9e-08,86421.0,86417.0,0.0115754]
[1765996813899,0.00100009,86421.0,86417.0,0.0115754]
[1765996814101,9e-08,86421.0,86414.0,0.3608]
[1765996814299,0.3608,86435.0,86420.0,0.0115749]
[1765996814504,0.3608,86435.0,86426.0,0.0115742]
[1765996814705,0.3608,86435.0,86423.0,0.0115746]
[1765996814894,0.3608,86435.0,86422.0,0.3608]
[1765996815090,0.3608,86435.0,86422.0,0.3723747]
[1765996815294,0.3608,86435.0,86422.0,0.3608]
[1765996815496,0.3608,86435.0,86422.0,0.3723747]
[1765996815801,0.3608,86435.0,86422.0,0.3608]
[1765996816694,0.3618,86435.0,86422.0,0.3608]
[1765996817196,0.3608,86424.0,86410.0,0.00017359]
[1765996817396,0.3608,86424.0,86411.0,0.03274612]
[1765996817595,0.3608,86414.0,86406.0,0.3608]
[1765996817794,0.3608,86414.0,86403.0,0.0115772]
[1765996818002,0.3608,86414.0,86402.0,0.3608]
[1765996818204,0.3608,86414.0,86403.0,0.0115773]
[1765996818401,0.3608,86414.0,86402.0,0.3608]
[1765996818597,0.3608,86414.0,86403.0,0.0115773]
[1765996819307,0.00017359,86417.0,86409.0,0.3608]
[1765996819510,0.00017359,86417.0,86404.0,0.0115771]
[1765996819691,0.00017359,86417.0,86406.0,0.0115768]
[1765996819892,0.001,86414.0,86406.0,0.0115768]
[1765996820404,0.00117359,86417.0,86404.0,0.0115771]
[1765996820706,0.00117359,86417.0,86402.0,0.3608]
[1765996821108,0.3608,86409.0,86400.0,0.01]
[1765996821305,0.3608,86401.0,86400.0,0.01]
[1765996821610,0.3608,86409.0,86400.0,0.01]
[1765996822000,0.001,86414.0,86404.0,0.3608]
[1765996822199,0.228372,86430.0,86404.0,0.3608]
[1765996822200,0.228372,86440.0,86413.0,0.3608]
[1765996822505,0.15748,86439.0,86420.0,0.3608]
[1765996823220,0.36097359,86437.0,86420.0,0.36097359]
[1765996823411,0.00017359,86437.0,86420.0,0.36097359]
[1765996823906,0.3608,86428.0,86420.0,0.19430359]
[1765996824403,0.3608,86421.0,86420.0,9e-08]
[1765996824610,0.3608,86428.0,86420.0,9e-08]
[1765996825400,0.3608,86421.0,86420.0,0.00100009]
[1765996825596,0.3608,86428.0,86420.0,0.00100009]
[1765996826008,0.3618,86428.0,86420.0,9e-08]
[1765996826393,0.3608,86421.0,86404.0,0.3608]
[1765996826609,0.3608,86421.0,86400.0,0.04108236]
[1765996826610,0.3608,86413.0,86400.0,0.01]
[1765996827108,0.3608,86405.0,86387.0,0.03108236]
[1765996827408,0.3608,86405.0,86377.0,0.40241821]
[1765996827409,0.3608,86396.0,86383.0,0.0115799]
[1765996827791,0.3608,86396.0,86383.0,0.03108236]
[1765996828011,0.3608,86396.0,86382.0,0.03108236]
[1765996829293,0.3608,86388.0,86379.0,0.39188236]
[1765996829605,0.29823031,86388.0,86380.0,0.03252901]
[1765996829802,0.29823031,86388.0,86381.0,0.03252901]
[1765996830003,0.29823031,86388.0,86379.0,0.3608]
[1765996830004,0.29823031,86388.0,86382.0,0.03452901]
[1765996830208,0.29823031,86388.0,86383.0,0.03252901]
[1765996830407,0.29823031,86388.0,86384.0,0.03252901]
[1765996830611,0.29823031,86388.0,86378.0,0.00231542]
[1765996830612,0.29923031,86388.0,86385.0,0.03252901]
[1765996830799,0.29923031,86388.0,86386.0,0.03252901]
[1765996830995,0.29923031,86388.0,86387.0,0.03252901]
[1765996832003,0.29923031,86388.0,86379.0,0.002]
[1765996832196,0.29823031,86388.0,86382.0,0.002]
[1765996832804,0.29823031,86388.0,86387.0,0.002]
[1765996833503,0.3608,86396.0,86382.0,0.002]
[1765996834010,0.3608,86396.0,86380.0,0.3608]
[1765996834011,0.00017359,86405.0,86388.0,0.3608]
[1765996836213,0.00017359,86405.0,86388.0,0.3618]
[1765996836513,0.00017359,86405.0,86397.0,0.3608]
[1765996837713,0.3608,86400.0,86390.0,0.3608]
[1765996839409,0.3608,86392.0,86380.0,0.03108236]
[1765996839608,0.3608,86381.0,86362.0,0.03108236]
[1765996839906,0.7216,86379.0,86378.0,2e-08]
[1765996840310,0.7216,86379.0,86352.0,0.56809821]
[1765996840311,0.7216,86379.0,86357.0,0.03108236]
[1765996840514,0.3608,86368.0,86356.0,0.03108236]
[1765996840908,0.3608,86368.0,86358.0,0.0115833]
[1765996841117,0.3608,86368.0,86356.0,0.03108236]
[1765996841420,0.3608,86368.0,86356.0,0.0115836]
[1765996841609,0.3608,86379.0,86367.0,0.3608]
[1765996842008,0.3608,86379.0,86378.0,0.001]
[1765996842609,0.3608,86379.0,86367.0,0.3608]
[1765996843209,0.3618,86379.0,86367.0,0.3608]
[1765996843811,0.3608,86379.0,86367.0,0.3618]
[1765996845418,0.3618,86379.0,86367.0,0.3608]
[1765996847813,0.3618,86379.0,86357.0,0.3723834]
[1765996848010,0.3618,86379.0,86364.0,0.3608]
[1765996849023,0.3723806,86379.0,86364.0,0.3608]
[1765996849320,0.3608,86379.0,86364.0,0.3608]
[1765996849721,0.3618,86379.0,86364.0,0.3608]
[1765996850223,0.3608,86372.0,86357.0,0.3608]
[1765996850430,0.3608,86358.0,86340.0,0.3608]
[1765996850923,0.3608,86358.0,86345.0,0.011585]
[1765996851120,0.3608,86358.0,86342.0,0.0115855]
[1765996851319,0.3723835,86358.0,86340.0,0.3608]
[1765996851515,0.3608,86358.0,86344.0,0.0115852]
[1765996851715,0.3608,86358.0,86347.0,0.3608]
[1765996852122,0.3608,86358.0,86357.0,0.001]
[1765996852328,0.36090076,86358.0,86357.0,0.001]
[1765996852511,0.36090076,86358.0,86347.0,0.3608]
[1765996853428,0.36390076,86358.0,86347.0,0.3608]
[1765996854824,0.36090076,86358.0,86347.0,0.3608]
[1765996855021,0.36190076,86358.0,86347.0,0.3608]
[1765996855215,0.0115835,86357.0,86347.0,0.3608]
[1765996855717,0.36190076,86358.0,86347.0,0.3608]
[1765996856320,0.0115837,86356.0,86347.0,0.3608]
[1765996856523,0.001,86357.0,86347.0,0.3608]
[1765996856920,0.0115836,86356.0,86347.0,0.3608]
[1765996857128,0.3608,86351.0,86340.0,0.3608]
[1765996857429,0.3608,86344.0,86338.0,0.00231649]
[1765996858132,0.3608,86344.0,86328.0,0.0115873]
[1765996858729,0.3608,86335.0,86326.0,0.0115876]
[1765996858919,0.00010076,86334.0,86326.0,0.0115876]
[1765996859119,0.19423076,86335.0,86326.0,0.0115876]
[1765996859426,0.19423076,86335.0,86328.0,0.0115873]
[1765996859830,0.19423076,86335.0,86327.0,0.0115875]
[1765996860220,0.19423076,86335.0,86329.0,0.0115872]
[1765996860419,0.33567517,86350.0,86322.0,0.3608]
[1765996860420,0.3608,86359.0,86334.0,0.3608]
[1765996860739,0.3608,86359.0,86346.0,0.3608]
[1765996860927,0.3608,86352.0,86335.0,0.0115864]
[1765996861230,0.3608,86359.0,86349.0,0.3608]
[1765996861231,0.75668,86359.0,86349.0,0.3608]
[1765996861530,0.75668,86359.0,86328.0,0.0115873]
[1765996861531,0.3608,86352.0,86328.0,0.3608]
[1765996861721,0.3608,86335.0,86328.0,0.3608]
[1765996862031,0.3608,86344.0,86328.0,0.3608]
[1765996862225,0.3608,86337.0,86328.0,0.3608]
[1765996862929,0.3608,86337.0,86328.0,0.3723873]
[1765996863230,0.3608,86337.0,86328.0,0.3608]
[1765996863932,0.00017369,86341.0,86328.0,0.3608]
[1765996864240,0.0115837,86356.0,86339.0,0.3608]
[1765996864528,0.3608,86346.0,86328.0,0.3608]
[1765996864825,0.3608,86353.0,86328.0,0.3608]
[1765996864826,0.33566145,86350.0,86328.0,0.3608]
[1765996865029,0.3608,86353.0,86336.0,0.3608]
[1765996865230,0.3608,86353.0,86346.0,0.3608]
[1765996865231,0.00017369,86353.0,86346.0,0.3608]
[1765996866517,0.00017369,86353.0,86336.0,0.36097369]
[1765996866717,0.3723852,86345.0,86336.0,3.69e-06]
[1765996866922,0.3608,86345.0,86336.0,3.69e-06]
[1765996867223,0.0115853,86344.0,86336.0,3.69e-06]
[1765996867429,0.00017369,86353.0,86340.0,0.3608]
[1765996867625,0.00017369,86353.0,86341.0,0.0115856]
[1765996867626,0.3608,86351.0,86341.0,0.0115856]
[1765996867926,0.00017369,86353.0,86348.0,0.3608]
[1765996868840,0.01175779,86353.0,86336.0,3.69e-06]
[1765996869137,0.3608,86347.0,86336.0,3.69e-06]
[1765996870334,0.3608,86337.0,86316.0,0.3608]
[1765996870630,0.3608,86327.0,86317.0,0.03147669]
[1765996870833,0.3608,86327.0,86318.0,0.03147669]
[1765996871029,0.3608,86327.0,86316.0,0.3608]
[1765996871237,0.3608,86327.0,86317.0,0.03134527]
[1765996871532,0.3608,86327.0,86316.0,0.3618]
[1765996871725,0.3608,86327.0,86317.0,0.03133493]
[1765996871928,0.3608,86327.0,86318.0,0.001]
[1765996872932,0.3608,86327.0,86316.0,0.3608]
[1765996873133,0.3608,86327.0,86316.0,0.001]
[1765996873436,0.3608,86327.0,86310.0,0.0001497]
[1765996873437,0.7216,86317.0,86280.0,0.04161821]
[1765996873733,0.0115902,86307.0,86270.0,0.33566145]
[1765996873930,0.3608,86299.0,86286.0,0.3608]
[1765996874322,0.3608,86289.0,86275.0,0.3723944]
[1765996874524,0.00011249,86298.0,86273.0,0.0115947]
[1765996874719,0.0001738,86291.0,86275.0,0.0115944]
[1765996875033,0.0001738,86291.0,86286.0,0.3608]
[1765996875631,0.00011249,86298.0,86287.0,0.3723929]
[1765996875832,0.3608,86292.0,86275.0,0.001]
[1765996876020,0.00011249,86298.0,86273.0,0.0115947]
[1765996876221,0.001,86291.0,86275.0,0.001]
[1765996876936,0.3608,86276.0,86275.0,0.001]
[1765996877432,0.0115961,86263.0,86248.0,9.157e-05]
[1765996877739,0.52668,86277.0,86238.0,0.3668]
[1765996877740,0.33566145,86270.0,86238.0,0.006]
[1765996878033,0.22292,86274.0,86244.0,0.0115986]
[1765996878225,0.33566145,86270.0,86238.0,0.006]
[1765996878427,0.0001739,86263.0,86238.0,0.006]
[1765996878832,0.00014946,86262.0,86238.0,0.006]
[1765996879036,0.00014946,86262.0,86238.0,0.007]
[1765996879630,0.3608,86252.0,86238.0,0.007]
[1765996879823,0.00014946,86262.0,86238.0,0.007]
[1765996879824,0.3608,86256.0,86243.0,0.3608]
[1765996881329,0.3608,86256.0,86243.0,0.001]
[1765996881330,0.3608,86248.0,86243.0,0.001]
[1765996881837,0.3608,86256.0,86242.0,0.3608]
[1765996882036,0.3608,86256.0,86243.0,0.001]
[1765996882236,0.0115973,86255.0,86238.0,0.006]
[1765996882434,0.3608,86246.0,86238.0,0.006]
[1765996882632,0.3608,86239.0,86233.0,0.01]
[1765996882836,0.3608,86239.0,86225.0,0.3608]
[1765996883036,0.3608,86239.0,86200.0,0.34570145]
[1765996883037,0.33566145,86235.0,86202.0,0.0116042]
[1765996883334,0.0001378,86234.0,86210.0,0.0116031]
[1765996883837,0.0001378,86234.0,86209.0,0.0116033]
[1765996884229,0.3608,86233.0,86220.0,0.3608]
[1765996884533,0.3608,86233.0,86202.0,0.3608]
[1765996884534,0.0001739,86245.0,86221.0,0.0116017]
[1765996884724,0.3608,86243.0,86229.0,0.3608]
[1765996884926,0.0001739,86245.0,86230.0,0.33566145]
[1765996885129,0.01,86255.0,86241.0,0.011599]
[1765996885327,0.01,86255.0,86204.0,0.011604]
[1765996885328,0.00010347,86254.0,86204.0,0.011604]
[1765996885537,0.0115988,86244.0,86210.0,0.33566145]
[1765996885835,0.34726075,86240.0,86211.0,0.011603]
[1765996886039,0.0001739,86238.0,86220.0,0.0001739]
[1765996887436,0.0001739,86238.0,86233.0,0.3608]
[1765996887635,0.0001739,86238.0,86233.0,0.36062]
[1765996887826,0.3608,86235.0,86222.0,0.3608]
[1765996888633,0.0001739,86238.0,86229.0,0.3608]
[1765996888826,3.9e-06,86238.0,86237.0,0.3608]
[1765996889527,8.75e-06,86243.0,86237.0,0.3608]
[1765996889936,8.75e-06,86243.0,86237.0,0.36054]
[1765996890142,0.3608,86238.0,86221.0,0.3608]
[1765996890332,0.0115997,86237.0,86222.0,0.001]
[1765996890729,0.3609739,86238.0,86220.0,0.0001739]
[1765996890730,0.3608,86223.0,86220.0,0.0001739]
[1765996891534,0.3608,86223.0,86222.0,0.001]
[1765996891845,0.3609739,86238.0,86222.0,0.001]
[1765996892040,0.3609739,86238.0,86227.0,0.3608]
[1765996892249,0.3608,86252.0,86237.0,0.3608]
[1765996892544,0.3608,86238.0,86224.0,0.0116013]
[1765996892734,0.33566145,86250.0,86220.0,0.0126018]
[1765996892931,0.57188,86249.0,86220.0,0.0126018]
[1765996893126,0.57188,86249.0,86229.0,0.3608]
[1765996893127,0.0115991,86241.0,86229.0,0.3608]
[1765996893534,0.3608,86235.0,86226.0,0.0001739]
[1765996893728,0.3608,86242.0,86226.0,0.3609739]
[1765996894145,0.0115991,86241.0,86226.0,0.3609739]
[1765996894343,0.001,86241.0,86226.0,0.3609739]
[1765996894640,0.0001739,86243.0,86226.0,0.3609739]
[1765996894848,0.01,86289.0,86241.0,0.3608]
[1765996894849,0.3608,86268.0,86241.0,0.3608]
[1765996895032,0.0115945,86276.0,86247.0,0.33566145]
[1765996895234,0.23396,86281.0,86264.0,0.0115959]
[1765996895436,0.23396,86281.0,86275.0,0.3608]
[1765996895745,0.01,86289.0,86279.0,0.0115939]
[1765996895933,1e-07,86289.0,86275.0,0.0001739]
[1765996896346,1e-07,86289.0,86282.0,0.3608]
[1765996896543,0.36311756,86298.0,86282.0,0.3608]
[1765996896746,0.3608,86305.0,86296.0,0.3608]
[1765996896931,0.3608,86305.0,86289.0,0.3608]
[1765996896932,0.0115906,86304.0,86289.0,0.3608]
[1765996897131,0.3608,86290.0,86281.0,0.3608]
[1765996897443,0.3608,86282.0,86275.0,0.0021739]
[1765996897834,0.3608,86282.0,86275.0,0.0001739]
[1765996898447,0.3608,86282.0,86256.0,0.940797]
[1765996898637,0.3608,86275.0,86256.0,0.940797]
[1765996898839,0.19413,86275.0,86267.0,0.3708]
[1765996899041,0.3608,86282.0,86267.0,0.3708]
[1765996899435,0.3608,86282.0,86267.0,0.3823955]
[1765996899640,0.0001739,86287.0,86275.0,0.3608]
[1765996899841,0.0001739,86287.0,86257.0,0.3608]
[1765996899842,0.3608,86276.0,86257.0,0.3608]
[1765996900047,0.0001739,86287.0,86239.0,0.0115992]
[1765996900048,0.7216,86258.0,86239.0,0.0115992]
[1765996900246,0.3608,86247.0,86239.0,0.0115992]
[1765996900640,0.3608,86258.0,86242.0,0.3608]
[1765996900837,0.3608,86258.0,86250.0,0.0115978]
[1765996901149,0.3608,86274.0,86257.0,0.3618]
[1765996901451,0.34725535,86280.0,86264.0,0.3608]
[1765996901642,0.3608,86284.0,86264.0,0.3608]
[1765996901643,0.3608,86277.0,86264.0,0.3608]
[1765996902140,0.0115954,86269.0,86262.0,0.0001739]
[1765996902338,0.3608,86269.0,86262.0,0.0001739]
[1765996903744,0.0115949,86272.0,86266.0,0.3608]
[1765996903950,0.0115985,86246.0,86228.0,0.3608]
[1765996904141,0.3608,86235.0,86220.0,0.3608]
[1765996904341,0.3608,86245.0,86233.0,0.0216001]
[1765996904543,0.3608,86254.0,86239.0,0.3608]
[1765996904737,0.0115975,86253.0,86239.0,0.3608]
[1765996904942,0.0001739,86255.0,86240.0,0.0115991]
[1765996905145,0.0001739,86255.0,86239.0,0.3608]
[1765996905538,0.0001739,86255.0,86240.0,0.0115992]
[1765996905761,0.0115973,86254.0,86239.0,0.3608]
[1765996905956,0.3609739,86255.0,86239.0,0.3608]
[1765996906247,0.3725711,86255.0,86239.0,1.0908]
[1765996906450,0.3609739,86255.0,86239.0,1.0908]
[1765996906950,0.3609739,86255.0,86250.0,0.3608]
[1765996906951,0.0001739,86255.0,86250.0,0.3608]
[1765996907150,3.9e-06,86255.0,86250.0,0.3608]
[1765996907843,0.0030039,86255.0,86250.0,1.09076]
[1765996908151,0.003,86255.0,86249.0,0.72996]
[1765996908346,0.3608,86263.0,86249.0,0.72996]
[1765996908547,0.3608,86256.0,86239.0,0.3608]
[1765996908848,0.3608,86256.0,86246.0,0.3608]
[1765996909053,0.3608,86256.0,86244.0,0.0115986]
[1765996909245,0.002,86255.0,86246.0,0.3608]
[1765996909854,0.3618,86256.0,86246.0,0.3608]
[1765996910160,0.001,86256.0,86246.0,0.3608]
[1765996910345,0.0001739,86259.0,86246.0,0.3608]
[1765996910550,0.0001739,86259.0,86255.0,0.999]
[1765996911652,0.0001739,86259.0,86246.0,0.3608]
[1765996912241,0.001,86256.0,86248.0,0.011598]
[1765996912645,0.0001739,86259.0,86248.0,0.011598]
[1765996912851,0.0011739,86259.0,86248.0,0.011598]
[1765996913059,0.0011739,86259.0,86246.0,0.3608]
[1765996913357,0.0001739,86259.0,86246.0,0.3608]
[1765996913564,0.001,86256.0,86246.0,0.3608]
[1765996914456,0.001,86256.0,86246.0,0.3723983]
[1765996914663,3.9e-06,86259.0,86246.0,0.3608]
[1765996914850,0.011595,86272.0,86257.0,0.3608]
[1765996915248,0.33566145,86280.0,86257.0,0.3608]
[1765996915249,0.34725535,86280.0,86257.0,0.3608]
[1765996915450,0.22931208,86270.0,86257.0,0.3608]
[1765996915657,0.3618,86259.0,86246.0,0.3608]
[1765996915850,0.3618,86259.0,86244.0,0.0001739]
[1765996916052,0.3608,86251.0,86244.0,0.0001739]
[1765996916554,0.3608,86259.0,86245.0,0.3608]
[1765996916753,3.9e-06,86261.0,86253.0,0.3608]
[1765996916954,0.3608,86254.0,86244.0,0.0001739]
[1765996917348,0.001,86251.0,86244.0,0.0001739]
[1765996917748,0.001,86251.0,86247.0,0.3608]
[1765996917948,0.001,86251.0,86247.0,0.3723982]
[1765996918250,3.9e-06,86261.0,86249.0,0.0115979]
[1765996918450,0.22931208,86260.0,86247.0,0.3608]
[1765996918753,0.22931208,86260.0,86247.0,0.3723982]
[1765996919347,0.22931208,86260.0,86247.0,0.3608]
[1765996919557,0.001,86260.0,86248.0,0.0115981]
[1765996919750,0.24190868,86260.0,86247.0,0.3608]
[1765996920155,0.011597,86257.0,86247.0,0.3608]
[1765996920357,0.23031208,86260.0,86250.0,0.0115978]
[1765996920558,3.9e-06,86261.0,86247.0,0.3608]
[1765996920857,0.3608,86262.0,86247.0,0.3608]
[1765996920858,0.211686,86266.0,86262.0,0.0115962]
[1765996921060,0.05815821,86278.0,86264.0,0.0115959]
[1765996921250,0.0115947,86274.0,86262.0,0.3608]
[1765996921445,0.3608,86277.0,86262.0,0.3608]
[1765996921663,0.0115948,86273.0,86262.0,0.3608]
[1765996921852,0.3608,86277.0,86262.0,0.3608]
[1765996922053,0.0115951,86271.0,86262.0,0.3608]
[1765996922256,0.0115947,86274.0,86262.0,0.3608]
[1765996922456,0.0115949,86272.0,86262.0,0.3608]
[1765996922854,0.0115949,86272.0,86241.0,0.3608]
[1765996922855,0.0115961,86263.0,86241.0,0.3608]
[1765996923062,0.3608,86250.0,86238.0,0.0115994]
[1765996923661,0.3608,86250.0,86240.0,0.0115991]
[1765996923961,0.3608,86243.0,86230.0,0.3608]
[1765996924150,0.3608,86236.0,86229.0,0.0001739]
[1765996924861,0.3608,86243.0,86231.0,0.3608]
[1765996925568,0.3608,86243.0,86229.0,3.9e-06]
[1765996925569,0.3608,86232.0,86229.0,3.9e-06]
[1765996926266,0.3608,86232.0,86218.0,0.00231971]
[1765996926864,0.3608,86223.0,86218.0,0.00231971]
[1765996927059,0.0001739,86229.0,86222.0,0.3608]
[1765996927253,0.0001739,86229.0,86218.0,0.01392181]
[1765996927254,0.0001739,86229.0,86219.0,0.22931208]
[1765996927461,0.3608,86240.0,86227.0,0.3608]
[1765996928263,0.0115981,86249.0,86235.0,0.3608]
[1765996928454,0.0115984,86247.0,86235.0,0.3608]
[1765996929060,0.60170998,86250.0,86235.0,0.3608]
[1765996929263,0.0115982,86248.0,86235.0,0.3608]
[1765996929453,0.0115985,86246.0,86235.0,0.3608]
[1765996930359,0.59011208,86250.0,86235.0,0.3608]
[1765996930562,0.0115998,86236.0,86216.0,0.3608]
[1765996930762,0.3608,86240.0,86231.0,0.3608]
[1765996930955,0.3608,86240.0,86227.0,0.0116009]
[1765996931149,0.3608,86240.0,86223.0,0.3608]
[1765996931150,0.3608,86240.0,86224.0,0.0116013]
[1765996931555,0.3608,86240.0,86229.0,0.0116006]
[1765996931765,0.3608,86240.0,86226.0,0.011601]
[1765996931965,0.3608,86240.0,86230.0,0.0116005]
[1765996932168,0.3608,86240.0,86230.0,0.0116004]
[1765996932365,0.3608,86240.0,86232.0,0.3608]
[1765996932663,0.3608,86240.0,86230.0,0.3608]
[1765996932868,0.3608,86232.0,86223.0,0.0001739]
[1765996933351,0.3608,86232.0,86230.0,1.0]
[1765996933559,0.3608,86232.0,86223.0,0.0001739]
[1765996933960,0.3608,86235.0,86223.0,0.0001739]
[1765996934160,0.0116,86234.0,86223.0,0.0001739]
[1765996934452,0.0115989,86243.0,86226.0,0.011601]
[1765996934654,0.0115989,86243.0,86223.0,0.0001739]
[1765996934655,0.011599,86242.0,86228.0,0.3608]
[1765996934857,0.3608,86243.0,86232.0,0.0116002]
[1765996935065,0.3608,86243.0,86230.0,0.001]
[1765996935261,0.3608,86243.0,86231.0,0.0116004]
[1765996935466,0.3608,86243.0,86230.0,0.0116005]
[1765996935662,0.3608,86243.0,86228.0,0.3608]
[1765996936168,0.3608,86236.0,86223.0,0.0001739]
[1765996936360,0.22944488,86240.0,86225.0,0.3608]
[1765996936557,0.3608,86243.0,86225.0,0.3608]
[1765996936964,0.011599,86242.0,86227.0,0.0116009]
[1765996937164,0.3608,86243.0,86225.0,0.3608]
[1765996937366,0.3723989,86243.0,86225.0,0.3608]
[1765996937562,0.3608,86243.0,86232.0,0.3608]
[1765996937764,0.3608,86243.0,86223.0,0.0001739]
[1765996937765,0.3608,86236.0,86223.0,0.0117753]
[1765996937958,0.3608,86236.0,86226.0,0.011601]
[1765996938273,0.3608,86236.0,86227.0,0.0116009]
[1765996938466,0.0115982,86248.0,86223.0,0.3639739]
[1765996938669,0.22944488,86250.0,86235.0,0.3608]
[1765996938875,0.0115989,86243.0,86235.0,0.3608]
[1765996939376,0.0115985,86246.0,86235.0,0.3608]
[1765996939565,0.0115985,86245.0,86235.0,0.3608]
[1765996939765,0.22944488,86250.0,86235.0,0.3608]
[1765996940065,0.0115983,86247.0,86235.0,0.3608]
[1765996940271,0.3608,86252.0,86235.0,0.3608]
[1765996940464,0.22944488,86250.0,86235.0,0.3723999]
[1765996940660,0.22944488,86250.0,86235.0,0.3608]
[1765996941276,0.22944488,86250.0,86235.0,0.3618]
[1765996941576,0.3608,86244.0,86235.0,0.02846]
[1765996941769,0.3608,86236.0,86224.0,0.0116012]
[1765996941972,0.3608,86227.0,86212.0,0.03122596]
[1765996942168,0.3608,86219.0,86218.0,1e-08]
[1765996942366,0.3724,86235.0,86218.0,1e-08]
[1765996942566,0.3724,86235.0,86221.0,0.3608]
[1765996942973,0.3608,86235.0,86221.0,0.3608]
[1765996943177,0.0116001,86234.0,86221.0,0.3608]
[1765996943379,0.3608,86235.0,86221.0,0.3608]
[1765996943572,0.0116,86234.0,86221.0,0.3608]
[1765996943778,0.3608,86235.0,86221.0,0.3608]
[1765996944079,0.0116004,86232.0,86221.0,0.3608]
[1765996944275,0.0001739,86237.0,86230.0,0.3608]
[1765996944476,3.9e-06,86237.0,86230.0,0.3608]
[1765996945781,3.9e-06,86237.0,86231.0,0.0116004]
[1765996946273,3.9e-06,86237.0,86235.0,0.0115998]
[1765996946972,1.01,86255.0,86240.0,0.22944488]
[1765996947171,1.01,86255.0,86248.0,0.3608]
[1765996948277,1.01,86255.0,86248.0,0.3628]
[1765996948678,0.3608,86251.0,86243.0,0.0001739]
[1765996948878,0.3608,86251.0,86248.0,0.003]
[1765996949385,0.22666,86255.0,86248.0,0.003]
[1765996949574,0.3609739,86260.0,86248.0,0.0145981]
[1765996949974,0.0115967,86259.0,86248.0,0.003]
[1765996950376,0.3725705,86260.0,86248.0,0.003]
[1765996950576,0.3725705,86260.0,86250.0,0.22944488]
[1765996950577,0.3609739,86260.0,86250.0,0.22944488]
[1765996950790,0.0115963,86262.0,86254.0,0.3608]
[1765996950974,0.3723953,86270.0,86261.0,0.3608]
[1765996951285,0.3608,86270.0,86261.0,0.3608]
[1765996951478,0.3723952,86270.0,86261.0,0.3608]
[1765996951878,0.0115957,86266.0,86261.0,0.3608]
[1765996952179,0.0115953,86269.0,86261.0,0.3608]
[1765996952369,0.3608,86270.0,86254.0,0.3638]
[1765996952370,0.3608,86262.0,86254.0,0.003]
[1765996952575,0.3608,86262.0,86247.0,0.0115982]
[1765996953485,0.3608,86262.0,86249.0,0.011598]
[1765996953670,0.3608,86262.0,86245.0,0.3608]
[1765996953984,0.3608,86262.0,86235.0,0.3608]
[1765996953985,0.3608,86251.0,86235.0,0.3608]
[1765996954190,0.3608,86243.0,86234.0,0.0116]
[1765996954378,0.3608,86243.0,86237.0,0.0115996]
[1765996954583,0.3608,86259.0,86236.0,0.7216]
[1765996954882,0.3608,86259.0,86246.0,0.3608]
[1765996955084,0.3608,86249.0,86244.0,3.9e-06]
[1765996955587,0.0115981,86248.0,86244.0,3.9e-06]
[1765996955789,0.0115985,86245.0,86237.0,3.9e-06]
[1765996955981,0.3608,86242.0,86233.0,3.9e-06]
[1765996956175,0.3608,86249.0,86233.0,3.9e-06]
[1765996956484,0.34663,86249.0,86233.0,3.9e-06]
[1765996956683,0.3608,86259.0,86248.0,0.3608]
[1765996957083,0.3608,86259.0,86239.0,0.3608]
[1765996957084,0.011598,86249.0,86239.0,0.3608]
[1765996957283,0.011598,86249.0,86233.0,3.9e-06]
[1765996957284,0.3608,86243.0,86233.0,3.9e-06]
[1765996957588,0.59024488,86243.0,86233.0,3.9e-06]
[1765996957784,0.3608,86243.0,86233.0,0.0010039]
[1765996958881,0.3608,86243.0,86233.0,3.9e-06]
[1765996959086,0.3608,86243.0,86233.0,0.0010039]
[1765996960590,0.3608,86243.0,86233.0,3.9e-06]
[1765996960785,0.3608,86243.0,86233.0,0.011604]
[1765996962085,0.0115971,86256.0,86242.0,0.0115989]